[Event "Live Chess"]
[Site "Chess.com"]
[Date "2023.05.20"]
[Round "-"]
[White "AbilifyXL"]
[Black "defenderalist"]
[Result "1-0"]
[WhiteElo "1954"]
[BlackElo "1620"]
[TimeControl "300"]
[EndTime "14:08:17 PDT"]
[Termination "AbilifyXL won by resignation"]

1. d4 {[%clk 0:04:59]} 1... Nf6 {[%clk 0:04:58.1]} 2. c4 {[%clk 0:04:58.5]} 2...
e6 {[%clk 0:04:57.3]} 3. Nc3 {[%clk 0:04:57.9]} 3... d5 {[%clk 0:04:51.3]} 4.
cxd5 {[%clk 0:04:56.9]} 4... exd5 {[%clk 0:04:50]} 5. Nf3 {[%clk 0:04:53]} 5...
Be6 {[%clk 0:04:47.6]} 6. Bg5 {[%clk 0:04:52.3]} 6... Be7 {[%clk 0:04:46.5]} 7.
e3 {[%clk 0:04:51.2]} 7... h6 {[%clk 0:04:44.8]} 8. Bh4 {[%clk 0:04:49.3]} 8...
g5 {[%clk 0:04:43.6]} 9. Bg3 {[%clk 0:04:47.7]} 9... Nbd7 {[%clk 0:04:38.9]} 10.
Bd3 {[%clk 0:04:46]} 10... c5 {[%clk 0:04:37.1]} 11. O-O {[%clk 0:04:44.5]}
11... c4 {[%clk 0:04:35.6]} 12. Bc2 {[%clk 0:04:40.7]} 12... Nh5 {[%clk
0:04:32.7]} 13. e4 {[%clk 0:04:37.5]} 13... Nxg3 {[%clk 0:04:29.2]} 14. hxg3
{[%clk 0:04:36.4]} 14... Nb6 {[%clk 0:04:17.1]} 15. Re1 {[%clk 0:04:33.4]} 15...
Bg4 {[%clk 0:04:08.9]} 16. exd5 {[%clk 0:04:26.7]} 16... Nxd5 {[%clk 0:04:07]}
17. Ba4+ {[%clk 0:04:21.7]} 17... Bd7 {[%clk 0:03:56.6]} 18. Nxd5 {[%clk
0:04:20.1]} 18... Bxa4 {[%clk 0:03:55.2]} 19. Qxa4+ {[%clk 0:04:19]} 1-0

[Event "Live Chess"]
[Site "Chess.com"]
[Date "2023.05.20"]
[Round "-"]
[White "WilliamofOrange16th"]
[Black "DRS44"]
[Result "1-0"]
[WhiteElo "1834"]
[BlackElo "1391"]
[TimeControl "300"]
[EndTime "14:08:36 PDT"]
[Termination "WilliamofOrange16th won by resignation"]

1. e4 {[%clk 0:04:58.8]} 1... e5 {[%clk 0:04:53]} 2. Nf3 {[%clk 0:04:57.5]} 2...
d5 {[%clk 0:04:44.7]} 3. Nxe5 {[%clk 0:04:51]} 3... Bd6 {[%clk 0:04:33.8]} 4. d4
{[%clk 0:04:11.7]} 4... dxe4 {[%clk 0:04:25.5]} 5. Nc4 {[%clk 0:04:00.1]} 5...
Nf6 {[%clk 0:04:19.5]} 6. Nxd6+ {[%clk 0:03:58.7]} 6... Qxd6 {[%clk 0:04:14.9]}
7. Be2 {[%clk 0:03:56.3]} 7... O-O {[%clk 0:04:08.2]} 8. O-O {[%clk 0:03:54.9]}
8... Nc6 {[%clk 0:03:56.1]} 9. Be3 {[%clk 0:03:50.7]} 9... Be6 {[%clk
0:03:42.9]} 10. c4 {[%clk 0:03:48.9]} 10... Qb4 {[%clk 0:03:23.8]} 11. Qc2
{[%clk 0:03:43.1]} 11... Na5 {[%clk 0:03:15.2]} 12. b3 {[%clk 0:03:39.1]} 12...
c5 {[%clk 0:03:09]} 13. d5 {[%clk 0:03:37.3]} 13... Bg4 {[%clk 0:03:02.9]} 14.
Bd2 {[%clk 0:03:24]} 14... Qb6 {[%clk 0:02:52.9]} 15. Bc3 {[%clk 0:03:21.9]}
15... Bxe2 {[%clk 0:02:43.6]} 16. Qxe2 {[%clk 0:03:21.8]} 16... Rfe8 {[%clk
0:02:25.1]} 17. Na3 {[%clk 0:03:02.5]} 17... Rad8 {[%clk 0:01:53.1]} 18. Nc2
{[%clk 0:03:00.1]} 18... Qd6 {[%clk 0:01:42.2]} 19. Ne3 {[%clk 0:02:58.9]} 19...
b5 {[%clk 0:01:29.2]} 20. Bxa5 {[%clk 0:02:57.3]} 20... bxc4 {[%clk 0:01:21.1]}
21. Bxd8 {[%clk 0:02:54.5]} 21... Rxd8 {[%clk 0:01:16.5]} 22. bxc4 {[%clk
0:02:53.7]} 22... Qe5 {[%clk 0:00:58.9]} 23. Rab1 {[%clk 0:02:50.6]} 23... Qc3
{[%clk 0:00:47.9]} 24. Rfc1 {[%clk 0:02:47.6]} 24... Qa3 {[%clk 0:00:41.9]} 25.
Rb3 {[%clk 0:02:44.5]} 25... Qa6 {[%clk 0:00:36.8]} 26. Rcb1 {[%clk 0:02:27.6]}
1-0

[Event "Live Chess"]
[Site "Chess.com"]
[Date "2023.05.20"]
[Round "-"]
[White "JanMur7"]
[Black "Richardallis"]
[Result "0-1"]
[WhiteElo "1982"]
[BlackElo "1859"]
[TimeControl "300"]
[EndTime "14:08:40 PDT"]
[Termination "Richardallis won by resignation"]

1. e4 {[%clk 0:04:57.5]} 1... d5 {[%clk 0:04:59]} 2. exd5 {[%clk 0:04:56.4]}
2... Nf6 {[%clk 0:04:58.3]} 3. Nc3 {[%clk 0:04:55]} 3... Nxd5 {[%clk 0:04:57.7]}
4. Nxd5 {[%clk 0:04:54.1]} 4... Qxd5 {[%clk 0:04:57.2]} 5. Nf3 {[%clk
0:04:52.6]} 5... Bf5 {[%clk 0:04:56.4]} 6. d4 {[%clk 0:04:50.7]} 6... Qe4+
{[%clk 0:04:55.4]} 7. Be2 {[%clk 0:04:49.3]} 7... Qxc2 {[%clk 0:04:54.9]} 8.
Qxc2 {[%clk 0:04:47.3]} 8... Bxc2 {[%clk 0:04:54.5]} 9. Bf4 {[%clk 0:04:47.2]}
9... c6 {[%clk 0:04:53]} 10. O-O {[%clk 0:04:44.5]} 10... Be4 {[%clk 0:04:51.2]}
11. Rac1 {[%clk 0:04:42.5]} 11... e6 {[%clk 0:04:49.9]} 12. Nd2 {[%clk
0:04:40.3]} 12... Bd5 {[%clk 0:04:48.4]} 13. Nc4 {[%clk 0:04:38.9]} 13... Bxc4
{[%clk 0:04:46]} 14. Bxc4 {[%clk 0:04:36]} 14... Nd7 {[%clk 0:04:45.3]} 15. Rfe1
{[%clk 0:04:34.7]} 15... Be7 {[%clk 0:04:42.8]} 16. d5 {[%clk 0:04:27.7]} 16...
cxd5 {[%clk 0:04:40]} 17. Bxd5 {[%clk 0:04:26.4]} 17... exd5 {[%clk 0:04:29.7]}
18. Bd6 {[%clk 0:04:20.2]} 18... O-O {[%clk 0:04:28.1]} 19. Rxe7 {[%clk
0:04:17.8]} 19... Nf6 {[%clk 0:04:17.7]} 20. Rxb7 {[%clk 0:04:13]} 20... Rfd8
{[%clk 0:04:16.6]} 21. Be7 {[%clk 0:04:08.9]} 21... Rdc8 {[%clk 0:04:15.6]} 22.
Rxc8+ {[%clk 0:04:00.4]} 22... Rxc8 {[%clk 0:04:14.3]} 23. g3 {[%clk 0:03:59.6]}
23... Ne4 {[%clk 0:04:12.8]} 24. Rd7 {[%clk 0:03:41.4]} 24... h6 {[%clk
0:04:04.3]} 25. Rxd5 {[%clk 0:03:37.7]} 25... Rc1+ {[%clk 0:04:01.3]} 26. Kg2
{[%clk 0:03:35.1]} 26... Rc2 {[%clk 0:04:00.7]} 27. Rf5 {[%clk 0:03:26.7]} 27...
g6 {[%clk 0:03:59.5]} 28. Rf4 {[%clk 0:03:22.7]} 28... f5 {[%clk 0:03:58.8]} 29.
g4 {[%clk 0:03:16.9]} 29... Rxb2 {[%clk 0:03:52.7]} 30. gxf5 {[%clk 0:03:06.1]}
30... gxf5 {[%clk 0:03:50.9]} 31. a3 {[%clk 0:03:03.4]} 31... Rb5 {[%clk
0:03:48]} 32. Kh3 {[%clk 0:02:47.3]} 32... Kf7 {[%clk 0:03:46.4]} 33. Bb4 {[%clk
0:02:45.3]} 33... a5 {[%clk 0:03:44.5]} 34. Be1 {[%clk 0:02:43.3]} 34... Rb3+
{[%clk 0:03:39.9]} 35. Kg2 {[%clk 0:02:41.1]} 35... Kg6 {[%clk 0:03:38.5]} 36.
Rf3 {[%clk 0:02:37.7]} 36... Rxf3 {[%clk 0:03:30.2]} 37. Kxf3 {[%clk 0:02:37.6]}
37... a4 {[%clk 0:03:29.6]} 38. Bb4 {[%clk 0:02:34.8]} 38... Nf6 {[%clk
0:03:26.6]} 39. h3 {[%clk 0:02:30.4]} 39... Nd5 {[%clk 0:03:23.8]} 40. Bd2
{[%clk 0:02:29.2]} 40... h5 {[%clk 0:03:21.3]} 41. h4 {[%clk 0:02:26]} 41... Kf6
{[%clk 0:03:20.4]} 42. Ke2 {[%clk 0:02:18.1]} 42... Ke5 {[%clk 0:03:19.4]} 43.
Kd3 {[%clk 0:02:17.3]} 43... f4 {[%clk 0:03:16.2]} 44. f3 {[%clk 0:02:10.3]}
44... Ne7 {[%clk 0:03:11.1]} 45. Bc3+ {[%clk 0:02:04.4]} 45... Kd5 {[%clk
0:03:07.8]} 46. Bd2 {[%clk 0:01:59.9]} 46... Ke5 {[%clk 0:03:06]} 47. Bc3+
{[%clk 0:01:57.7]} 47... Kd5 {[%clk 0:03:04.5]} 48. Bd2 {[%clk 0:01:55]} 48...
Nf5 {[%clk 0:03:03.9]} 49. Be1 {[%clk 0:01:51.4]} 49... Nd4 {[%clk 0:02:58.6]}
50. Bd2 {[%clk 0:01:44.4]} 50... Nxf3 {[%clk 0:02:57.6]} 51. Bxf4 {[%clk
0:01:43.3]} 51... Nxh4 {[%clk 0:02:57.1]} 52. Kc3 {[%clk 0:01:41.1]} 52... Ke4
{[%clk 0:02:53.4]} 53. Bb8 {[%clk 0:01:36.9]} 53... Nf5 {[%clk 0:02:51.4]} 54.
Kb4 {[%clk 0:01:35.5]} 54... Kf3 {[%clk 0:02:49.8]} 55. Kxa4 {[%clk 0:01:33.7]}
55... Ng3 {[%clk 0:02:48.6]} 56. Kb5 {[%clk 0:01:24.6]} 56... h4 {[%clk
0:02:47.2]} 57. a4 {[%clk 0:01:19.6]} 57... h3 {[%clk 0:02:46]} 58. a5 {[%clk
0:01:18.5]} 58... h2 {[%clk 0:02:45.4]} 59. a6 {[%clk 0:01:10.9]} 59... h1=Q
{[%clk 0:02:43.2]} 60. a7 {[%clk 0:01:10.2]} 60... Kg4 {[%clk 0:02:42.3]} 61.
Kb6 {[%clk 0:01:05.3]} 61... Qa8 {[%clk 0:02:41.5]} 62. Bxg3 {[%clk 0:01:03.6]}
62... Kxg3 {[%clk 0:02:39.7]} 63. Ka6 {[%clk 0:01:03.5]} 63... Kf4 {[%clk
0:02:38.5]} 64. Kb6 {[%clk 0:01:03.4]} 64... Ke5 {[%clk 0:02:37.4]} 65. Ka6
{[%clk 0:01:03.3]} 65... Kd6 {[%clk 0:02:36.4]} 66. Kb6 {[%clk 0:01:03.2]} 66...
Kd5 {[%clk 0:02:34.6]} 67. Ka6 {[%clk 0:01:03.1]} 67... Kc6 {[%clk 0:02:33.9]}
68. Ka5 {[%clk 0:01:01.3]} 68... Qxa7+ {[%clk 0:02:31.8]} 69. Kb4 {[%clk
0:01:01.2]} 69... Qe3 {[%clk 0:02:30.3]} 70. Kc4 {[%clk 0:01:00.3]} 70... Qe4+
{[%clk 0:02:28.9]} 71. Kb3 {[%clk 0:00:59.3]} 71... Qd4 {[%clk 0:02:26.5]} 0-1

[Event "Live Chess"]
[Site "Chess.com"]
[Date "2023.05.20"]
[Round "-"]
[White "JoeRoot66"]
[Black "Shepherds_Pie"]
[Result "0-1"]
[WhiteElo "1909"]
[BlackElo "1934"]
[TimeControl "300"]
[EndTime "14:08:49 PDT"]
[Termination "Shepherds_Pie won by resignation"]

1. e4 {[%clk 0:04:58.2]} 1... e6 {[%clk 0:04:58.6]} 2. d4 {[%clk 0:04:56.6]}
2... d5 {[%clk 0:04:56.7]} 3. Bd3 {[%clk 0:04:56.1]} 3... dxe4 {[%clk
0:04:53.8]} 4. Bxe4 {[%clk 0:04:56]} 4... Nf6 {[%clk 0:04:52.3]} 5. Bf3 {[%clk
0:04:55.7]} 5... c5 {[%clk 0:04:50.6]} 6. Ne2 {[%clk 0:04:55.3]} 6... Nc6 {[%clk
0:04:48.4]} 7. Be3 {[%clk 0:04:53.8]} 7... cxd4 {[%clk 0:04:47.3]} 8. Nxd4
{[%clk 0:04:53.1]} 8... Nxd4 {[%clk 0:04:46.1]} 9. Qxd4 {[%clk 0:04:52.8]} 9...
Qxd4 {[%clk 0:04:44]} 10. Bxd4 {[%clk 0:04:52.7]} 10... Be7 {[%clk 0:04:42.4]}
11. Nc3 {[%clk 0:04:51.4]} 11... O-O {[%clk 0:04:41.3]} 12. O-O {[%clk
0:04:50.1]} 12... Rd8 {[%clk 0:04:39.2]} 13. Rad1 {[%clk 0:04:48.8]} 13... Bd7
{[%clk 0:04:33.7]} 14. Ne4 {[%clk 0:04:31.9]} 14... Nxe4 {[%clk 0:04:30.4]} 15.
Bxe4 {[%clk 0:04:29]} 15... Bc6 {[%clk 0:04:29.6]} 16. Bxc6 {[%clk 0:04:28.2]}
16... bxc6 {[%clk 0:04:27.9]} 17. c4 {[%clk 0:04:24.2]} 17... c5 {[%clk
0:04:26.1]} 18. Be5 {[%clk 0:04:20.3]} 18... f6 {[%clk 0:04:23.8]} 19. Bc7
{[%clk 0:04:17.5]} 19... Rxd1 {[%clk 0:04:19.2]} 20. Rxd1 {[%clk 0:04:16]} 20...
Kf8 {[%clk 0:04:18]} 21. b3 {[%clk 0:04:06.7]} 21... Ke8 {[%clk 0:04:16.6]} 22.
f3 {[%clk 0:04:00.4]} 22... Rc8 {[%clk 0:04:15.4]} 23. Bd6 {[%clk 0:03:58.3]}
23... Rd8 {[%clk 0:04:11.7]} 0-1

[Event "Live Chess"]
[Site "Chess.com"]
[Date "2023.05.20"]
[Round "-"]
[White "jk0110"]
[Black "Tushinskiy"]
[Result "0-1"]
[WhiteElo "1101"]
[BlackElo "2142"]
[TimeControl "300"]
[EndTime "14:08:54 PDT"]
[Termination "Tushinskiy won by resignation"]

1. e4 {[%clk 0:04:57.8]} 1... e5 {[%clk 0:04:58.4]} 2. Nf3 {[%clk 0:04:56.9]}
2... d6 {[%clk 0:04:58.3]} 3. d4 {[%clk 0:04:55.3]} 3... Bg4 {[%clk 0:04:57.6]}
4. d5 {[%clk 0:04:52.4]} 4... Nf6 {[%clk 0:04:52.9]} 5. c4 {[%clk 0:04:50.6]}
5... Nbd7 {[%clk 0:04:52.1]} 6. Nc3 {[%clk 0:04:48]} 6... Be7 {[%clk 0:04:51]}
7. h3 {[%clk 0:04:46.1]} 7... Bh5 {[%clk 0:04:50]} 8. Bd3 {[%clk 0:04:39.4]}
8... c6 {[%clk 0:04:41.2]} 9. Ne2 {[%clk 0:04:27.8]} 9... Bxf3 {[%clk
0:04:38.6]} 10. gxf3 {[%clk 0:04:25]} 10... Qc7 {[%clk 0:04:31.4]} 11. Rg1
{[%clk 0:04:12.5]} 11... g6 {[%clk 0:04:29.4]} 12. Ng3 {[%clk 0:03:59.8]} 12...
O-O-O {[%clk 0:04:11.4]} 13. Be3 {[%clk 0:03:49]} 13... Kb8 {[%clk 0:04:08.1]}
14. Qa4 {[%clk 0:03:36.2]} 14... Nc5 {[%clk 0:03:59.6]} 15. Qa3 {[%clk
0:03:19.4]} 15... h5 {[%clk 0:03:51.4]} 16. b4 {[%clk 0:03:17.8]} 16... Nxd3+
{[%clk 0:03:50]} 17. Kd2 {[%clk 0:03:13]} 17... Nc5 {[%clk 0:03:42.7]} 18. bxc5
{[%clk 0:03:08.6]} 18... dxc5 {[%clk 0:03:42.6]} 19. Rab1 {[%clk 0:03:04.6]}
19... b6 {[%clk 0:03:40.2]} 20. Rgd1 {[%clk 0:02:08.8]} 20... cxd5 {[%clk
0:03:37.9]} 21. exd5 {[%clk 0:02:05.6]} 21... Ne8 {[%clk 0:03:33.9]} 22. Ne4
{[%clk 0:01:54]} 22... Ka8 {[%clk 0:03:32.5]} 23. Ke2 {[%clk 0:01:46]} 23... f5
{[%clk 0:03:29.4]} 24. d6 {[%clk 0:01:44.4]} 24... Nxd6 {[%clk 0:03:25.8]} 25.
Nxd6 {[%clk 0:01:39.9]} 25... Bxd6 {[%clk 0:03:25.7]} 26. Bg5 {[%clk 0:01:16.8]}
26... Rde8 {[%clk 0:03:19]} 27. Bf6 {[%clk 0:01:14.3]} 27... Rhf8 {[%clk
0:03:17.4]} 28. Bg5 {[%clk 0:01:02.9]} 28... e4 {[%clk 0:03:16.1]} 29. f4 {[%clk
0:00:59.6]} 29... Bxf4 {[%clk 0:03:08.1]} 30. Bxf4 {[%clk 0:00:57.4]} 30... Qxf4
{[%clk 0:03:07.1]} 31. Rxb6 {[%clk 0:00:55.1]} 31... Qf3+ {[%clk 0:03:05.5]} 32.
Kf1 {[%clk 0:00:52.1]} 32... Qxa3 {[%clk 0:03:04]} 33. Rxg6 {[%clk 0:00:44.2]}
33... Qxh3+ {[%clk 0:03:00.7]} 34. Ke1 {[%clk 0:00:39]} 34... e3 {[%clk
0:02:59.2]} 35. Rg7 {[%clk 0:00:28.2]} 35... exf2+ {[%clk 0:02:51.5]} 36. Kxf2
{[%clk 0:00:28.1]} 36... Qe3+ {[%clk 0:02:48.4]} 37. Kg2 {[%clk 0:00:27.7]}
37... Qe2+ {[%clk 0:02:47.5]} 0-1

[Event "Live Chess"]
[Site "Chess.com"]
[Date "2023.05.20"]
[Round "-"]
[White "Brooms1989"]
[Black "diana21strabt"]
[Result "0-1"]
[WhiteElo "1031"]
[BlackElo "1702"]
[TimeControl "300"]
[EndTime "14:08:55 PDT"]
[Termination "diana21strabt won by checkmate"]

1. e4 {[%clk 0:04:55.8]} 1... d5 {[%clk 0:04:58.9]} 2. exd5 {[%clk 0:04:54.6]}
2... Qxd5 {[%clk 0:04:57.9]} 3. Nc3 {[%clk 0:04:54.2]} 3... Qa5 {[%clk
0:04:56.8]} 4. d4 {[%clk 0:04:51.8]} 4... Nf6 {[%clk 0:04:56]} 5. Nf3 {[%clk
0:04:50.4]} 5... Bg4 {[%clk 0:04:55.1]} 6. h3 {[%clk 0:04:43.8]} 6... Bh5 {[%clk
0:04:52.5]} 7. Be2 {[%clk 0:04:38.4]} 7... Nc6 {[%clk 0:04:50.7]} 8. O-O {[%clk
0:04:36.2]} 8... O-O-O {[%clk 0:04:49]} 9. Be3 {[%clk 0:04:31.5]} 9... e5 {[%clk
0:04:47.2]} 10. Bd2 {[%clk 0:04:13.1]} 10... Bxf3 {[%clk 0:04:36.8]} 11. Bxf3
{[%clk 0:04:06.8]} 11... Nxd4 {[%clk 0:04:36]} 12. Ne4 {[%clk 0:03:58.1]} 12...
Nxf3+ {[%clk 0:04:33]} 13. Qxf3 {[%clk 0:03:57.1]} 13... Qb6 {[%clk 0:04:21.8]}
14. Rab1 {[%clk 0:03:44]} 14... Nxe4 {[%clk 0:04:19.7]} 15. Be3 {[%clk
0:03:37.2]} 15... Qc6 {[%clk 0:04:11.7]} 16. Qf5+ {[%clk 0:03:27.4]} 16... Kb8
{[%clk 0:04:06.1]} 17. Qxe5 {[%clk 0:03:17.3]} 17... Bd6 {[%clk 0:03:55.7]} 18.
Qa5 {[%clk 0:02:56.9]} 18... a6 {[%clk 0:03:49.8]} 19. c3 {[%clk 0:02:52.2]}
19... f5 {[%clk 0:03:36.4]} 20. Rbd1 {[%clk 0:02:45.1]} 20... f4 {[%clk
0:03:31.9]} 21. Bd4 {[%clk 0:02:41.7]} 21... f3 {[%clk 0:03:25.1]} 22. g3 {[%clk
0:02:38.9]} 22... Bxg3 {[%clk 0:03:16.7]} 23. fxg3 {[%clk 0:02:33.1]} 23... Qg6
{[%clk 0:03:05.5]} 24. Rxf3 {[%clk 0:02:19.7]} 24... Nxg3 {[%clk 0:03:03.6]} 25.
Kh2 {[%clk 0:02:09.5]} 25... Rhe8 {[%clk 0:02:57.2]} 26. Be5 {[%clk 0:01:58.2]}
26... Rxd1 {[%clk 0:02:30.6]} 27. Qxc7+ {[%clk 0:01:53.1]} 27... Ka8 {[%clk
0:02:27.6]} 28. Rf7 {[%clk 0:01:34.9]} 28... Nf1+ {[%clk 0:02:17]} 29. Kh1
{[%clk 0:01:27.5]} 29... Ne3+ {[%clk 0:02:10.1]} 30. Kh2 {[%clk 0:01:22.5]}
30... Qg2# {[%clk 0:02:08.3]} 0-1

[Event "Live Chess"]
[Site "Chess.com"]
[Date "2023.05.20"]
[Round "-"]
[White "manthanit"]
[Black "GEMdzq"]
[Result "0-1"]
[WhiteElo "1017"]
[BlackElo "2234"]
[TimeControl "300"]
[EndTime "14:08:59 PDT"]
[Termination "GEMdzq won by checkmate"]

1. e4 {[%clk 0:04:59.1]} 1... d6 {[%clk 0:04:58.5]} 2. Nf3 {[%clk 0:04:58]} 2...
Nf6 {[%clk 0:04:58.1]} 3. Nc3 {[%clk 0:04:55]} 3... g6 {[%clk 0:04:57.6]} 4. Bc4
{[%clk 0:04:53.6]} 4... Bg7 {[%clk 0:04:56.9]} 5. d3 {[%clk 0:04:53]} 5... O-O
{[%clk 0:04:53.2]} 6. O-O {[%clk 0:04:51.8]} 6... c5 {[%clk 0:04:52]} 7. a4
{[%clk 0:04:49]} 7... Nc6 {[%clk 0:04:51.4]} 8. Be3 {[%clk 0:04:42]} 8... Ng4
{[%clk 0:04:48.1]} 9. Ng5 {[%clk 0:04:32.9]} 9... Nce5 {[%clk 0:04:21.8]} 10. h3
{[%clk 0:04:26]} 10... Nxe3 {[%clk 0:04:17.7]} 11. fxe3 {[%clk 0:04:22.2]} 11...
Nxc4 {[%clk 0:04:15]} 12. dxc4 {[%clk 0:04:20.6]} 12... h6 {[%clk 0:04:14]} 13.
Nf3 {[%clk 0:04:14.8]} 13... Bd7 {[%clk 0:04:09.9]} 14. Nd5 {[%clk 0:04:08.3]}
14... Bc6 {[%clk 0:04:08.5]} 15. Rb1 {[%clk 0:04:04.7]} 15... e6 {[%clk
0:04:06.3]} 16. Nf4 {[%clk 0:03:58.5]} 16... Bxa4 {[%clk 0:04:04.5]} 17. b3
{[%clk 0:03:56.3]} 17... Bc6 {[%clk 0:04:03]} 18. Qe2 {[%clk 0:03:47.1]} 18...
Bxe4 {[%clk 0:04:01.4]} 19. Rbd1 {[%clk 0:03:44.9]} 19... Qc7 {[%clk 0:03:59.4]}
20. Nh4 {[%clk 0:03:34.4]} 20... g5 {[%clk 0:03:47.3]} 21. Nxe6 {[%clk
0:03:28.9]} 21... fxe6 {[%clk 0:03:45.3]} 22. Rxf8+ {[%clk 0:03:28.4]} 22...
Rxf8 {[%clk 0:03:44.8]} 23. Nf3 {[%clk 0:03:24.6]} 23... Bxf3 {[%clk 0:03:43.5]}
24. gxf3 {[%clk 0:03:23.4]} 24... Qc6 {[%clk 0:03:42.4]} 25. Rf1 {[%clk
0:03:15.8]} 25... d5 {[%clk 0:03:41]} 26. cxd5 {[%clk 0:03:14.4]} 26... exd5
{[%clk 0:03:40.2]} 27. c4 {[%clk 0:03:11.8]} 27... d4 {[%clk 0:03:37.2]} 28.
exd4 {[%clk 0:03:10.5]} 28... Bxd4+ {[%clk 0:03:36.9]} 29. Kg2 {[%clk
0:03:01.9]} 29... Re8 {[%clk 0:03:36]} 30. Qd3 {[%clk 0:02:55.6]} 30... Qe6
{[%clk 0:03:33.8]} 31. Kh1 {[%clk 0:02:44.3]} 31... Qxh3# {[%clk 0:03:32.3]} 0-1

[Event "Live Chess"]
[Site "Chess.com"]
[Date "2023.05.20"]
[Round "-"]
[White "weibs440"]
[Black "TheSmoulderingMaster"]
[Result "0-1"]
[WhiteElo "927"]
[BlackElo "1715"]
[TimeControl "300"]
[EndTime "14:09:16 PDT"]
[Termination "TheSmoulderingMaster won by resignation"]

1. e4 {[%clk 0:04:59.2]} 1... c5 {[%clk 0:04:58.3]} 2. Nc3 {[%clk 0:04:56.9]}
2... Nc6 {[%clk 0:04:56.4]} 3. f4 {[%clk 0:04:56.3]} 3... e6 {[%clk 0:04:55.9]}
4. Nf3 {[%clk 0:04:54.2]} 4... Nf6 {[%clk 0:04:55]} 5. Bb5 {[%clk 0:04:50.2]}
5... Qc7 {[%clk 0:04:51.6]} 6. O-O {[%clk 0:04:46.1]} 6... Qxf4 {[%clk
0:04:49.5]} 7. Nd4 {[%clk 0:04:29]} 7... Qe5 {[%clk 0:04:36.6]} 8. Nxc6 {[%clk
0:04:22.5]} 8... dxc6 {[%clk 0:04:35.4]} 9. Bc4 {[%clk 0:04:16]} 9... Nxe4
{[%clk 0:04:33.9]} 10. Re1 {[%clk 0:04:04.6]} 10... Qd4+ {[%clk 0:04:32.4]} 11.
Kh1 {[%clk 0:03:51.7]} 11... Nf2+ {[%clk 0:04:31.6]} 0-1

[Event "Live Chess"]
[Site "Chess.com"]
[Date "2023.05.20"]
[Round "-"]
[White "FlyingChessKestrel13"]
[Black "Myrkur"]
[Result "1-0"]
[WhiteElo "2120"]
[BlackElo "2442"]
[TimeControl "300"]
[EndTime "14:09:17 PDT"]
[Termination "FlyingChessKestrel13 won by resignation"]

1. e4 {[%clk 0:04:59.3]} 1... c6 {[%clk 0:04:58.6]} 2. d4 {[%clk 0:04:53.3]}
2... d5 {[%clk 0:04:57.6]} 3. exd5 {[%clk 0:04:52.7]} 3... cxd5 {[%clk
0:04:56.5]} 4. c4 {[%clk 0:04:52.3]} 4... Nf6 {[%clk 0:04:54.8]} 5. Nc3 {[%clk
0:04:50.7]} 5... Nc6 {[%clk 0:04:53.7]} 6. Nf3 {[%clk 0:04:49.3]} 6... Bg4
{[%clk 0:04:52.5]} 7. Be3 {[%clk 0:04:44.6]} 7... e6 {[%clk 0:04:51]} 8. c5
{[%clk 0:04:43.5]} 8... Ne4 {[%clk 0:04:49]} 9. Be2 {[%clk 0:04:40.5]} 9... f5
{[%clk 0:04:44.7]} 10. O-O {[%clk 0:04:38.2]} 10... Be7 {[%clk 0:04:43]} 11. a3
{[%clk 0:04:36.5]} 11... Bf6 {[%clk 0:04:41.6]} 12. Rb1 {[%clk 0:04:34.1]} 12...
O-O {[%clk 0:04:40]} 13. Rc1 {[%clk 0:04:22.9]} 13... a5 {[%clk 0:04:37.1]} 14.
h3 {[%clk 0:04:16.7]} 14... Bxf3 {[%clk 0:04:35]} 15. Bxf3 {[%clk 0:04:15]}
15... b6 {[%clk 0:04:31.8]} 16. Bxe4 {[%clk 0:04:11.8]} 16... fxe4 {[%clk
0:04:29.5]} 17. Nb5 {[%clk 0:04:06.7]} 17... bxc5 {[%clk 0:04:24.3]} 18. Rxc5
{[%clk 0:04:04]} 18... Ne7 {[%clk 0:04:16.6]} 19. Nc7 {[%clk 0:04:00.5]} 19...
Qd6 {[%clk 0:04:04.5]} 20. Nxa8 {[%clk 0:03:58.1]} 20... Rxa8 {[%clk 0:04:02.6]}
21. Qc2 {[%clk 0:03:56.4]} 21... Rf8 {[%clk 0:03:51.5]} 22. Rc1 {[%clk
0:03:53.7]} 22... Nf5 {[%clk 0:03:47.5]} 23. Rc6 {[%clk 0:03:46.9]} 23... Qd7
{[%clk 0:03:45.5]} 24. Rc7 {[%clk 0:03:44.6]} 24... Qb5 {[%clk 0:03:42.9]} 25.
a4 {[%clk 0:03:29.8]} 25... Qb4 {[%clk 0:03:32.9]} 26. Qc6 {[%clk 0:03:24.3]}
26... Bxd4 {[%clk 0:03:08.6]} 27. Qxe6+ {[%clk 0:03:21.4]} 27... Kh8 {[%clk
0:03:07.4]} 28. Rc8 {[%clk 0:03:17.4]} 28... Nxe3 {[%clk 0:03:03.8]} 29. Rxf8+
{[%clk 0:03:14.5]} 29... Qxf8 {[%clk 0:03:00.8]} 30. Rc8 {[%clk 0:03:13.1]} 1-0

[Event "Live Chess"]
[Site "Chess.com"]
[Date "2023.05.20"]
[Round "-"]
[White "toog"]
[Black "whitedjohn"]
[Result "1-0"]
[WhiteElo "2615"]
[BlackElo "1664"]
[TimeControl "300"]
[EndTime "14:09:25 PDT"]
[Termination "toog won by checkmate"]

1. b4 {[%clk 0:04:55.9]} 1... e5 {[%clk 0:04:55.3]} 2. Bb2 {[%clk 0:04:54.2]}
2... Bxb4 {[%clk 0:04:54.3]} 3. Bxe5 {[%clk 0:04:52.6]} 3... Nf6 {[%clk
0:04:53.8]} 4. Nf3 {[%clk 0:04:50.8]} 4... Nc6 {[%clk 0:04:53.1]} 5. Bb2 {[%clk
0:04:47.5]} 5... O-O {[%clk 0:04:52.5]} 6. e3 {[%clk 0:04:45]} 6... d5 {[%clk
0:04:48.4]} 7. Bb5 {[%clk 0:04:41.6]} 7... Bg4 {[%clk 0:04:45]} 8. h3 {[%clk
0:04:39.4]} 8... Bh5 {[%clk 0:04:42.1]} 9. O-O {[%clk 0:04:36.4]} 9... a6 {[%clk
0:04:24]} 10. Be2 {[%clk 0:04:18.9]} 10... Re8 {[%clk 0:04:04.2]} 11. a3 {[%clk
0:04:09.1]} 11... Bd6 {[%clk 0:04:01.4]} 12. d3 {[%clk 0:04:08]} 12... Ne5
{[%clk 0:03:51.1]} 13. Nxe5 {[%clk 0:04:03.8]} 13... Bxe2 {[%clk 0:03:50.5]} 14.
Qxe2 {[%clk 0:04:03.7]} 14... Bxe5 {[%clk 0:03:48.2]} 15. Bxe5 {[%clk
0:04:03.6]} 15... Rxe5 {[%clk 0:03:45.5]} 16. Nd2 {[%clk 0:04:03.5]} 16... Qd7
{[%clk 0:03:14.9]} 17. Nf3 {[%clk 0:03:59.6]} 17... Re7 {[%clk 0:03:12.7]} 18.
Rab1 {[%clk 0:03:56.8]} 18... b6 {[%clk 0:03:09.8]} 19. Rfc1 {[%clk 0:03:53.8]}
19... Qd6 {[%clk 0:03:05.6]} 20. a4 {[%clk 0:03:44.7]} 20... a5 {[%clk
0:03:02.3]} 21. c4 {[%clk 0:03:42.8]} 21... dxc4 {[%clk 0:02:52.3]} 22. Rxc4
{[%clk 0:03:40.5]} 22... Nd5 {[%clk 0:02:43.2]} 23. Rbc1 {[%clk 0:03:37.7]}
23... Nb4 {[%clk 0:02:33.9]} 24. Nd4 {[%clk 0:03:33.1]} 24... g6 {[%clk
0:02:13.6]} 25. R4c3 {[%clk 0:03:21.3]} 25... c5 {[%clk 0:01:57.5]} 26. Nb5
{[%clk 0:03:18]} 26... Qd7 {[%clk 0:01:53.7]} 27. d4 {[%clk 0:03:12]} 27... cxd4
{[%clk 0:01:42.4]} 28. Rc7 {[%clk 0:03:11.1]} 28... Qe6 {[%clk 0:01:38.9]} 29.
Rxe7 {[%clk 0:03:10.4]} 29... Qxe7 {[%clk 0:01:33.3]} 30. Nxd4 {[%clk 0:03:09]}
30... Rd8 {[%clk 0:01:24.7]} 31. Qb5 {[%clk 0:03:04.1]} 31... Qd6 {[%clk
0:01:15]} 32. h4 {[%clk 0:02:50.3]} 32... Kg7 {[%clk 0:01:12.4]} 33. h5 {[%clk
0:02:47.6]} 33... Rd7 {[%clk 0:01:07]} 34. Qg5 {[%clk 0:02:38.7]} 34... Qd5
{[%clk 0:00:32.3]} 35. h6+ {[%clk 0:02:33.9]} 35... Kf8 {[%clk 0:00:29.8]} 36.
Rc8+ {[%clk 0:02:28.1]} 36... Rd8 {[%clk 0:00:27.6]} 37. Rxd8+ {[%clk
0:02:26.9]} 37... Qxd8 {[%clk 0:00:24.9]} 38. Qxd8# {[%clk 0:02:26.8]} 1-0